bitfinex-derivatives/quotes_SOLF0:USTF0_20250928
["timestamp","ask_amount","ask_price","bid_price","bid_amount"]
[1759062239076,8.01169233,199.55,199.54,7.96]
[1759062245382,8.01169233,199.55,199.42,443.23835357]
[1759062245383,4.5086,199.52,199.51,122.58]
[1759062245580,70.1129,199.58,199.52,7.96]
[1759062245779,70.1129,199.58,199.51,122.58]
[1759062245780,4.5084,199.53,199.51,130.54]
[1759062245986,4.5084,199.53,199.52,7.96]
[1759062253189,8.01303421,199.53,199.52,7.96]
[1759062253788,8.01303421,199.53,199.48,7.48]
[1759062253986,4.5084,199.53,199.5,7.48]
[1759062254683,4.5084,199.53,199.49,122.56]
[1759062255792,4.5084,199.53,199.5,7.48]
[1759062256893,4.5084,199.53,199.49,122.56]
[1759062257691,4.5084,199.53,199.5,7.48]
[1759062257891,4.5084,199.53,199.49,122.56]
[1759062258089,4.5084,199.53,199.5,7.48]
[1759062258284,4.5084,199.53,199.49,122.56]
[1759062258491,4.5084,199.53,199.5,7.48]
[1759062258683,4.5084,199.53,199.49,122.56]
[1759062259090,3.50901581,199.52,199.5,7.48]
[1759062259291,4.5084,199.53,199.49,122.56]
[1759062259486,3.50909419,199.52,199.5,7.48]
[1759062259691,4.5084,199.53,199.5,7.48]
[1759062259996,3.50909419,199.52,199.5,7.48]
[1759062260193,4.5084,199.53,199.49,122.56]
[1759062260390,5.54718804,199.6,199.5,7.48]
[1759062260598,3.50995935,199.59,199.5,7.48]
[1759062260898,3.50995935,199.58,199.5,7.48]
[1759062261099,3.50995935,199.57,199.5,7.48]
[1759062261295,3.50995935,199.56,199.5,7.48]
[1759062261498,3.50995935,199.55,199.5,7.48]
[1759062261697,5.54718804,199.62,199.5,7.48]
[1759062261899,3.50969039,199.61,199.5,7.48]
[1759062262098,3.50969039,199.6,199.5,7.48]
[1759062262399,3.50969039,199.59,199.5,7.48]
[1759062262589,3.50969039,199.58,199.5,7.48]
[1759062262902,5.54718804,199.65,199.51,7.48]
[1759062263098,3.50874302,199.64,199.51,7.48]
[1759062263401,3.50874302,199.63,199.51,7.48]
[1759062263599,4.5066,199.61,199.56,7.68]
[1759062263907,3.50874302,199.6,199.57,122.54]
[1759062264109,3.50874302,199.59,199.58,7.68]
[1759062264304,4.5066,199.61,199.58,7.68]
[1759062264500,3.50458631,199.6,199.58,7.68]
[1759062264698,4.5061,199.63,199.58,7.68]
[1759062265007,3.50404463,199.62,199.58,7.68]
[1759062265207,4.5061,199.63,199.58,7.68]
[1759062265408,3.50203651,199.62,199.58,7.68]
[1759062265605,4.5057,199.65,199.58,7.68]
[1759062265798,3.50203565,199.64,199.58,7.68]
[1759062266003,3.50203565,199.63,199.58,7.68]
[1759062266210,3.50203565,199.62,199.58,7.68]
[1759062266508,70.63812442,199.67,199.58,7.68]
[1759062266703,3.50062023,199.66,199.59,122.52]
[1759062266904,4.5062,199.63,199.6,7.68]
[1759062267104,3.50062023,199.62,199.6,7.68]
[1759062267307,4.5062,199.63,199.6,7.68]
[1759062267608,4.5062,199.63,199.59,122.52]
[1759062267809,4.5062,199.63,199.6,7.68]
[1759062268201,4.5062,199.63,199.59,122.52]
[1759062269012,4.5062,199.63,199.6,7.68]
[1759062269708,4.5062,199.63,199.61,7.68]
[1759062270014,4.5056,199.66,199.6,122.5]
[1759062270208,3.49683324,199.65,199.6,122.5]
[1759062270409,3.49683324,199.64,199.61,7.68]
[1759062270615,4.5056,199.66,199.6,122.5]
[1759062270815,3.49586906,199.65,199.58,7.68]
[1759062271012,3.49586906,199.64,199.6,7.68]
[1759062271207,4.5056,199.66,199.6,7.68]
[1759062271407,3.49502866,199.65,199.6,7.68]
[1759062271612,4.5056,199.66,199.6,7.68]
[1759062271911,3.4949496,199.65,199.6,7.68]
[1759062272106,4.5056,199.66,199.6,7.68]
[1759062273610,4.505,199.68,199.6,7.68]
[1759062275218,4.5053,199.67,199.6,7.68]
[1759062275515,4.5053,199.67,199.61,122.48]
[1759062275721,4.5053,199.67,199.62,122.48]
[1759062276211,4.5053,199.67,199.6,7.68]
[1759062276411,4.5053,199.67,199.62,7.68]
[1759062276811,4.5053,199.67,199.61,122.48]
[1759062277012,4.5053,199.67,199.62,7.68]
[1759062277218,4.5053,199.67,199.61,122.48]
[1759062277419,4.5048,199.69,199.62,7.68]
[1759062278421,70.0647,199.72,199.62,7.68]
[1759062278614,3.48639652,199.71,199.62,7.68]
[1759062278916,70.0647,199.72,199.62,7.68]
[1759062278917,3.48639652,199.7,199.62,7.68]
[1759062279119,3.48639652,199.69,199.62,7.68]
[1759062279319,70.0647,199.72,199.62,7.68]
[1759062279507,4.5053,199.67,199.62,7.68]
[1759062279712,4.5053,199.67,199.62,122.46]
[1759062279916,4.5053,199.67,199.63,7.68]
[1759062280417,4.5053,199.67,199.62,122.46]
[1759062280815,4.5053,199.67,199.63,7.68]
[1759062281016,4.5053,199.67,199.62,122.46]
[1759062281221,4.5053,199.67,199.63,7.68]
[1759062281415,4.5053,199.67,199.62,122.46]
[1759062281612,4.5053,199.67,199.63,7.68]
[1759062282320,4.5053,199.67,199.62,122.46]
[1759062282620,4.5053,199.67,199.63,7.68]
[1759062282816,4.5053,199.67,199.62,122.46]
[1759062283022,4.5053,199.67,199.63,7.68]
[1759062283321,4.5053,199.67,199.62,122.46]
[1759062283821,4.5053,199.67,199.6,4.5066]
[1759062284021,4.5053,199.67,199.62,7.68]
[1759062284219,4.5053,199.67,199.63,7.68]
[1759062284416,4.5053,199.67,199.62,7.68]
[1759062285122,4.5048,199.69,199.63,7.68]
[1759062285811,4.505,199.68,199.62,49.58]
[1759062286012,4.505,199.68,199.63,7.68]
[1759062286211,4.505,199.68,199.62,76.62]
[1759062286509,4.505,199.68,199.63,7.68]
[1759062287222,4.505,199.68,199.62,76.62]
[1759062287615,4.505,199.68,199.61,4.5064]
[1759062287820,4.505,199.68,199.62,40.4]
[1759062288019,4.505,199.68,199.63,7.68]
[1759062288221,4.505,199.68,199.62,40.4]
[1759062288716,4.5052,199.67,199.63,7.68]
[1759062289121,4.5052,199.67,199.62,7.68]
[1759062289324,4.5052,199.67,199.61,34.32]
[1759062289824,4.5052,199.67,199.62,7.68]
[1759062290214,4.5052,199.67,199.61,34.32]
[1759062290819,4.5055,199.66,199.59,4.5069]
[1759062291017,70.0703,199.7,199.6,81.48]
[1759062291218,70.0703,199.7,199.61,7.68]
[1759062292625,4.5057,199.65,199.6,73.8]
[1759062293126,4.5057,199.65,199.61,7.68]
[1759062293422,4.5057,199.65,199.6,73.8]
[1759062294022,4.5057,199.65,199.61,7.41]
[1759062294227,4.5057,199.65,199.6,7.41]
[1759062297829,4.5052,199.67,199.6,7.41]
[1759062298836,4.5055,199.66,199.6,7.41]
[1759062300527,4.5051,199.68,199.61,7.41]
[1759062301136,4.5045,199.7,199.6,109.76]
[1759062301336,4.5045,199.7,199.59,7.41]
[1759062301535,4.5045,199.7,199.61,7.41]
[1759062301838,4.5045,199.7,199.63,7.41]
[1759062302238,4.5045,199.7,199.64,4.5057]
[1759062302437,4.5045,199.7,199.65,7.41]
[1759062303043,70.57878918,199.75,199.65,7.41]
[1759062303044,4.5041,199.72,199.65,7.41]
[1759062303436,4.5041,199.72,199.65,11.9155]
[1759062303638,0.52268918,199.75,199.66,7.41]
[1759062303938,3.49056389,199.74,199.66,7.41]
[1759062304135,92.28772536,199.8,199.66,7.41]
[1759062304337,3.49233686,199.79,199.66,7.41]
[1759062304534,3.49233686,199.78,199.66,77.4942]
[1759062304738,3.49233686,199.77,199.68,7.41]
[1759062304938,92.28772536,199.8,199.7,7.41]
[1759062305134,3.49073338,199.79,199.7,7.41]
[1759062305334,3.49073338,199.78,199.7,4.5044]
[1759062305530,96.79012536,199.8,199.71,7.41]
[1759062305840,92.28772536,199.8,199.71,7.41]
[1759062306137,92.28772536,199.8,199.71,129.77]
[1759062306339,92.28772536,199.8,199.72,7.41]
[1759062306937,92.28772536,199.8,199.72,20.07]
[1759062307446,92.28772536,199.8,199.73,7.41]
[1759062307640,4.5028,199.78,199.74,7.41]
[1759062307840,4.5028,199.78,199.72,12.66]
[1759062308045,4.5028,199.78,199.73,7.41]
[1759062308341,4.5028,199.78,199.72,12.66]
[1759062308542,4.5028,199.78,199.73,7.41]
[1759062308738,4.5028,199.78,199.72,12.66]
[1759062308941,4.5028,199.78,199.74,7.41]
[1759062309244,4.5028,199.78,199.73,7.41]
[1759062309748,4.5028,199.78,199.72,12.66]
[1759062310046,96.79002536,199.8,199.73,7.41]
[1759062311547,4.5026,199.79,199.73,7.41]
[1759062311941,92.28772536,199.8,199.73,7.41]
[1759062312655,4.5028,199.78,199.72,27.36]
[1759062313347,4.5028,199.78,199.69,4.5045]
[1759062313645,4.5028,199.78,199.71,7.7]
[1759062314050,4.5028,199.78,199.72,33.94]
[1759062314246,4.5028,199.78,199.73,7.7]
[1759062314750,4.5028,199.78,199.72,33.94]
[1759062315047,4.5028,199.78,199.73,7.7]
[1759062315244,4.5028,199.78,199.72,33.94]
[1759062315443,4.5028,199.78,199.73,7.7]
[1759062315644,4.5028,199.78,199.72,33.94]
[1759062316049,4.5028,199.78,199.73,7.7]
[1759062316848,4.5028,199.78,199.72,33.94]
[1759062317352,4.5028,199.78,199.73,7.7]
[1759062317745,4.5028,199.78,199.71,64.58]
[1759062317950,4.5028,199.78,199.72,7.7]
[1759062318351,96.79002536,199.8,199.72,7.7]
[1759062322243,96.79002536,199.8,199.72,12.2039]
[1759062322449,96.79002536,199.8,199.73,7.7]
[1759062323450,4.5023,199.8,199.73,7.7]
[1759062323648,70.0109,199.87,199.74,7.51]
[1759062323649,4.5018,199.82,199.74,7.51]
[1759062324459,4.5018,199.82,199.75,7.51]
[1759062325355,4.5013,199.84,199.76,7.51]
[1759062325556,4.5013,199.84,199.77,7.51]
[1759062325951,4.5013,199.84,199.78,68.16]
[1759062326458,70.011,199.87,199.7,7.51]
[1759062326645,70.0144,199.86,199.7,7.51]
[1759062326848,70.0184,199.85,199.71,55.16]
[1759062327051,70.0184,199.85,199.72,7.51]
[1759062327250,70.026,199.83,199.72,7.51]
[1759062327554,70.0405,199.79,199.72,7.51]
[1759062327860,70.0497,199.76,199.68,7.51]
[1759062328060,70.0431,199.78,199.68,7.51]
[1759062329457,4.5039,199.73,199.67,486.58]
[1759062329658,4.5039,199.73,199.68,7.51]
[1759062329864,4.5039,199.73,199.67,486.58]
[1759062330061,4.5039,199.73,199.68,122.24]
[1759062330663,4.5039,199.73,199.69,7.51]
[1759062331453,4.5039,199.73,199.68,122.24]
[1759062332056,4.5039,199.73,199.69,7.51]
[1759062332264,4.5039,199.73,199.68,122.24]
[1759062332764,4.5039,199.73,199.69,7.51]
[1759062332964,4.5039,199.73,199.68,122.24]
[1759062333166,4.5039,199.73,199.7,7.51]
[1759062337375,4.5039,199.73,199.69,122.24]
[1759062337577,4.5033,199.76,199.7,7.51]
[1759062337774,70.0355,199.8,199.72,7.51]
[1759062337973,70.0355,199.8,199.72,129.75]
[1759062338275,70.0355,199.8,199.72,122.24]
[1759062338276,4.5037,199.74,199.72,122.24]
[1759062338669,4.5037,199.74,199.68,7.51]
[1759062338874,4.5037,199.74,199.69,122.24]
[1759062339077,4.5037,199.74,199.7,7.51]
[1759062339378,4.5037,199.74,199.69,122.24]
[1759062339574,4.5037,199.74,199.7,7.51]
[1759062340481,4.5039,199.73,199.7,7.51]
[1759062341179,70.0355,199.8,199.69,7.51]
[1759062341180,4.5034,199.75,199.69,7.51]
[1759062341481,4.5034,199.75,199.71,7.51]
[1759062341681,4.5034,199.75,199.72,122.22]
[1759062341881,70.026,199.83,199.73,7.51]
[1759062342282,70.026,199.83,199.74,24.34]
[1759062342579,70.026,199.83,199.73,7.51]
[1759062342781,70.026,199.83,199.74,24.6]
[1759062342981,70.026,199.83,199.75,7.51]
[1759062342982,4.5027,199.78,199.75,7.51]
[1759062343279,0.532796,199.84,199.76,7.51]
[1759062343584,0.532796,199.84,199.76,87.09]
[1759062344783,0.532796,199.84,199.72,7.51]
[1759062344979,70.0285,199.82,199.72,7.51]
[1759062345182,70.0285,199.82,199.73,26.6]
[1759062345482,70.0285,199.82,199.72,7.51]
[1759062345683,70.0285,199.82,199.73,50.7]
[1759062345882,70.0285,199.82,199.72,7.51]
[1759062346184,4.5029,199.78,199.73,77.86]
[1759062346478,4.5029,199.78,199.74,7.51]
[1759062347280,4.5029,199.78,199.73,77.86]
[1759062347481,4.5029,199.78,199.74,7.51]
[1759062348783,4.503,199.77,199.73,107.44]
[1759062349682,4.503,199.77,199.74,7.51]
[1759062350484,4.503,199.77,199.73,107.44]
[1759062350684,4.503,199.77,199.74,7.51]
[1759062350880,4.503,199.77,199.73,107.44]
[1759062351080,4.503,199.77,199.74,7.51]
[1759062351480,4.503,199.77,199.73,107.44]
[1759062351886,70.0387,199.79,199.73,7.51]
[1759062353288,70.0352,199.8,199.73,7.51]
[1759062354079,70.0352,199.8,199.71,122.2]
[1759062354385,70.0352,199.8,199.72,8.0]
[1759062354889,70.0324,199.81,199.72,8.0]
[1759062355288,70.0324,199.81,199.72,31.36]
[1759062355487,70.0324,199.81,199.73,8.0]
[1759062356192,0.532796,199.84,199.73,8.0]
[1759062356380,0.532796,199.84,199.7,13.58790719]
[1759062356690,4.5019,199.82,199.76,8.0]
[1759062356890,0.532796,199.84,199.78,8.0]
[1759062357291,0.532796,199.84,199.78,61.46]
[1759062357589,5.034196,199.84,199.78,61.46]
[1759062357791,5.034196,199.84,199.78,53.46]
[1759062358389,5.034196,199.84,199.79,8.0]
[1759062358593,0.532796,199.84,199.79,8.0]
[1759062358893,0.532796,199.84,199.78,53.46]
[1759062359082,4.5018,199.82,199.79,8.0]
[1759062359287,4.5018,199.82,199.78,53.46]
[1759062359484,4.5018,199.82,199.79,8.0]
[1759062359688,4.5014,199.84,199.79,8.0]
[1759062360087,4.5014,199.84,199.78,53.46]
[1759062360692,4.5014,199.84,199.79,8.0]
[1759062360891,4.5014,199.84,199.78,88.2]
[1759062361088,4.5007,199.87,199.79,8.0]
[1759062361290,4.5007,199.87,199.81,8.0]
[1759062362097,70.0015,199.9,199.81,8.0]
[1759062362790,70.0081,199.88,199.81,8.0]
[1759062364386,4.5017,199.83,199.81,8.0]
[1759062365494,70.0081,199.88,199.74,4.5035]
[1759062365694,70.0081,199.88,199.75,8.0]
[1759062365889,70.0081,199.88,199.77,8.0]
[1759062366498,4.5015,199.84,199.77,8.0]
[1759062366799,69.997,199.91,199.77,8.0]
[1759062367000,69.997,199.91,199.79,8.0]
[1759062367301,69.997,199.91,199.81,8.0]
[1759062367995,179.06039274,199.92,199.82,8.0]
[1759062367996,163.78744918,199.92,199.82,8.0]
[1759062368393,4.5008,199.87,199.8,8.0]
[1759062368598,4.5008,199.87,199.81,8.0]
[1759062368894,69.9993,199.91,199.81,8.0]
[1759062369100,70.0039,199.89,199.81,8.0]
[1759062369499,4.5011,199.85,199.79,26.3]
[1759062369898,4.5011,199.85,199.77,5.24371764]
[1759062370100,4.5011,199.85,199.79,8.0]
[1759062371207,4.5019,199.82,199.78,7.54]
[1759062371596,4.5019,199.82,199.77,0.74091764]
[1759062371797,4.5019,199.82,199.78,7.54]
[1759062372605,4.5019,199.82,199.77,0.74091764]
[1759062372801,4.5019,199.82,199.78,7.54]
[1759062373009,4.5019,199.82,199.77,0.74091764]
[1759062373408,4.5019,199.82,199.78,7.54]
[1759062373609,4.5019,199.82,199.77,0.74091764]
[1759062373804,4.5022,199.81,199.78,7.54]
[1759062374809,70.0073,199.88,199.78,7.54]
[1759062375706,4.5016,199.83,199.77,122.88091764]
[1759062376301,4.5016,199.83,199.78,7.54]
[1759062376704,4.5019,199.82,199.78,7.54]
[1759062376907,4.5019,199.82,199.77,122.88091764]
[1759062377312,4.5019,199.82,199.78,7.54]
[1759062377505,4.5019,199.82,199.77,122.88091764]
[1759062377706,4.5019,199.82,199.78,7.54]
[1759062377907,70.0247,199.83,199.77,0.74091764]
[1759062379615,4.5026,199.79,199.77,0.74091764]
[1759062380718,4.5026,199.79,199.77,8.28091764]
[1759062381703,4.5021,199.81,199.77,8.28091764]
[1759062381913,4.5021,199.81,199.78,7.54]
[1759062383112,4.5023,199.8,199.78,7.54]
[1759062384110,4.5023,199.8,199.77,0.74091764]
[1759062384512,4.5023,199.8,199.78,7.92]
[1759062384818,4.5023,199.8,199.77,37.98091764]
[1759062385218,4.5023,199.8,199.78,7.92]
[1759062385517,4.5023,199.8,199.77,37.98091764]
[1759062386016,4.5023,199.8,199.78,7.92]
[1759062386619,4.5023,199.8,199.77,37.98091764]
[1759062387212,4.5023,199.8,199.78,7.92]
[1759062387608,4.5023,199.8,199.77,37.98091764]
[1759062388008,4.5023,199.8,199.78,7.92]
[1759062388416,4.5023,199.8,199.77,37.98091764]
[1759062389015,4.5023,199.8,199.78,7.92]
[1759062389413,4.5023,199.8,199.77,37.98091764]
[1759062389615,4.5023,199.8,199.78,7.92]
[1759062389917,4.5023,199.8,199.77,37.98091764]
[1759062390115,4.5023,199.8,199.78,7.92]
[1759062390512,4.5023,199.8,199.77,37.98091764]
[1759062391213,4.5023,199.8,199.78,7.92]
[1759062391409,70.0073,199.88,199.78,7.92]
[1759062391410,4.5019,199.82,199.78,7.92]
[1759062391909,4.5019,199.82,199.79,7.92]
[1759062392113,4.5019,199.82,199.78,69.64]
[1759062392813,4.5019,199.82,199.79,7.92]
[1759062393118,4.5019,199.82,199.78,69.64]
[1759062393510,4.5019,199.82,199.79,7.92]
[1759062394315,70.0002,199.9,199.79,7.92]
[1759062394520,70.0002,199.9,199.79,92.02]
[1759062394715,70.0002,199.9,199.79,95.82]
[1759062395019,70.0002,199.9,199.8,7.92]
[1759062395624,4.5012,199.85,199.8,7.92]
[1759062396017,4.5012,199.85,199.8,24.3]
[1759062396214,4.5012,199.85,199.79,7.92]
[1759062396415,4.5008,199.87,199.81,7.92]
[1759062398122,69.9992,199.91,199.81,7.92]
[1759062398711,4.501,199.86,199.81,7.92]
[1759062399115,4.501,199.86,199.8,30.14]
[1759062399317,4.501,199.86,199.78,7.92]
[1759062399516,4.501,199.86,199.8,35.26]
[1759062399715,4.501,199.86,199.81,7.92]
[1759062399914,4.501,199.86,199.8,35.26]
[1759062400120,4.501,199.86,199.81,7.92]
[1759062400516,4.501,199.86,199.8,35.26]
[1759062401816,4.501,199.86,199.81,7.92]
[1759062402223,4.501,199.86,199.8,35.26]
[1759062402416,4.501,199.86,199.8,7.92]
[1759062402617,4.501,199.86,199.81,18.44]
[1759062402918,4.501,199.86,199.81,36.42]
[1759062403319,4.501,199.86,199.82,7.92]
[1759062403722,4.501,199.86,199.81,36.42]
[1759062403923,4.501,199.86,199.82,7.92]
[1759062404123,4.501,199.86,199.81,36.42]
[1759062404321,4.501,199.86,199.82,7.92]
[1759062405115,4.501,199.86,199.81,36.42]
[1759062405620,69.9992,199.91,199.79,4.5024]
[1759062405621,4.5012,199.85,199.8,53.48]
[1759062406022,4.5012,199.85,199.8,79.76]
[1759062406221,4.5012,199.85,199.81,7.92]
[1759062406428,4.5012,199.85,199.8,71.84]
[1759062406630,4.5012,199.85,199.81,7.92]
[1759062407129,4.5012,199.85,199.8,71.84]
[1759062407826,4.5012,199.85,199.81,7.92]
[1759062408130,4.5012,199.85,199.8,71.84]
[1759062408525,4.5012,199.85,199.81,7.92]
[1759062408728,4.5012,199.85,199.78,7.92]
[1759062408925,4.5012,199.85,199.8,102.62]
[1759062409329,4.5012,199.85,199.8,114.22]
[1759062409525,70.0118,199.87,199.78,7.92]
[1759062409730,70.0045,199.89,199.78,7.92]
[1759062409933,70.0045,199.89,199.79,7.92]
[1759062410629,4.5016,199.83,199.78,13.62]
[1759062410825,4.5016,199.83,199.79,7.92]
[1759062411034,70.0218,199.84,199.77,0.74091764]
[1759062411344,70.0218,199.84,199.76,7.92]
[1759062411630,70.0247,199.83,199.76,7.92]
[1759062411832,70.0111,199.87,199.76,7.92]
[1759062412035,70.0253,199.83,199.76,7.92]
[1759062413735,70.0253,199.83,199.74,7.46]
[1759062415034,4.5028,199.78,199.74,7.46]
[1759062415232,70.0394,199.79,199.68,5.58790719]
[1759062415434,70.0352,199.8,199.69,7.46]
[1759062415435,70.0427,199.78,199.69,7.46]
[1759062415629,4.5039,199.73,199.69,7.46]
[1759062415824,4.5039,199.73,199.68,122.08]
[1759062416232,4.5039,199.73,199.67,7.46]
[1759062416434,4.5039,199.73,199.68,122.08]
[1759062417031,4.5039,199.73,199.68,122.1]
[1759062417237,4.5039,199.73,199.69,7.46]
[1759062417936,4.5039,199.73,199.68,122.1]
[1759062418139,4.5039,199.73,199.69,7.46]
[1759062418538,4.5039,199.73,199.68,122.1]
[1759062418939,4.5039,199.73,199.69,7.46]
[1759062419133,4.5039,199.73,199.68,122.1]
[1759062419544,4.5039,199.73,199.69,7.46]
[1759062419735,4.5034,199.75,199.69,7.46]
[1759062420135,4.5034,199.75,199.7,122.1]
[1759062420338,4.503,199.77,199.71,7.46]
[1759062420543,4.503,199.77,199.66,369.78790719]
[1759062420736,4.503,199.77,199.67,129.56]
[1759062420937,4.503,199.77,199.68,129.56]
[1759062421238,4.5023,199.8,199.67,7.46]
[1759062421446,4.5023,199.8,199.69,7.46]
[1759062421651,70.0214,199.84,199.71,7.46]
[1759062422541,4.5026,199.79,199.71,11.9641]
[1759062422743,70.028,199.83,199.71,7.46]
[1759062423444,4.5028,199.78,199.71,7.46]
[1759062423751,4.5028,199.78,199.72,122.1]
[1759062424247,70.0422,199.78,199.68,7.46]
[1759062424640,70.0529,199.75,199.68,7.46]
[1759062424836,70.0529,199.75,199.68,129.56]
[1759062425241,70.0529,199.75,199.68,7.46]
[1759062425444,70.0529,199.75,199.68,129.56]
[1759062425645,4.5044,199.71,199.68,7.46]
[1759062426440,4.5037,199.74,199.68,7.46]
[1759062426645,4.5037,199.74,199.69,122.12]
[1759062426842,4.5037,199.74,199.71,7.46]
[1759062428653,4.5032,199.76,199.67,7.46]
[1759062428839,4.5032,199.76,199.69,7.46]
[1759062429043,4.5032,199.76,199.7,122.12]
[1759062429343,4.5032,199.76,199.71,7.46]
[1759062429539,4.5032,199.76,199.7,122.12]
[1759062429745,70.0406,199.79,199.71,7.46]
[1759062430949,70.0501,199.76,199.67,7.98]
[1759062431151,70.0501,199.76,199.68,122.12]
[1759062431349,70.0501,199.76,199.67,7.98]
[1759062431648,4.5041,199.72,199.69,7.98]
[1759062432243,4.5036,199.74,199.68,7.98]
[1759062432450,4.5036,199.74,199.7,7.98]
[1759062432650,70.0459,199.77,199.7,7.98]
[1759062433156,4.5041,199.72,199.7,7.98]
[1759062433549,70.0537,199.75,199.66,372.18]
[1759062433750,70.0537,199.75,199.67,122.16]
[1759062435052,70.0571,199.74,199.66,372.18]
[1759062435346,70.0705,199.7,199.61,130.1]
[1759062435653,70.074,199.69,199.61,7.98]
[1759062436047,70.074,199.69,199.62,29.1]
[1759062436647,70.0678,199.71,199.62,29.1]
[1759062436851,70.0678,199.71,199.62,57.38]
[1759062437054,4.5055,199.66,199.62,57.38]
[1759062437448,4.5055,199.66,199.62,84.58]
[1759062438547,4.5049,199.68,199.62,84.58]
[1759062438746,70.0602,199.73,199.63,7.98]
[1759062438951,70.0602,199.73,199.64,29.3]
[1759062439150,70.0602,199.73,199.65,7.98]
[1759062439551,4.5048,199.69,199.65,7.98]
[1759062439749,4.5048,199.69,199.64,29.3]
[1759062439950,4.5048,199.69,199.64,56.66]
[1759062440853,4.5048,199.69,199.64,82.64]
[1759062441255,4.5048,199.69,199.65,7.98]
[1759062441949,4.5048,199.69,199.64,82.64]
[1759062442149,4.5048,199.69,199.65,7.98]
[1759062442355,4.5051,199.68,199.65,7.98]
[1759062442555,4.5051,199.68,199.63,112.22]
[1759062442751,4.5051,199.68,199.64,7.98]
[1759062443056,4.5051,199.68,199.63,112.22]
[1759062443552,4.5053,199.67,199.61,122.22]
[1759062443856,70.0669,199.71,199.61,122.22]
[1759062445059,70.0669,199.71,199.62,7.97]
[1759062445247,4.5053,199.67,199.62,7.97]
[1759062445452,4.5053,199.67,199.6,7.97]
[1759062445651,4.5053,199.67,199.61,46.1]
[1759062445954,4.5053,199.67,199.62,7.97]
[1759062446256,4.5053,199.67,199.61,61.46]
[1759062446454,4.5053,199.67,199.62,7.97]
[1759062446657,4.5053,199.67,199.61,61.46]
[1759062446853,4.5053,199.67,199.62,7.97]
[1759062447253,4.5053,199.67,199.61,61.46]
[1759062447456,4.5053,199.67,199.62,7.97]
[1759062447858,4.5053,199.67,199.61,61.46]
[1759062448060,4.5053,199.67,199.62,7.97]
[1759062448248,4.5053,199.67,199.61,61.46]
[1759062448452,4.5053,199.67,199.62,7.97]
[1759062448657,4.5053,199.67,199.61,61.46]
[1759062449052,70.0369,199.8,199.62,7.97]
[1759062449256,70.0391,199.79,199.63,127.21]
[1759062449453,70.0391,199.79,199.64,7.97]
[1759062449960,70.0391,199.79,199.66,7.97]
[1759062450158,4.5035,199.75,199.68,7.97]
[1759062450356,70.0369,199.8,199.69,35.3]